[Event "*** Monthly 3|2 Blitz Masters"]
[Site "Chess.com"]
[Date "2014.11.25"]
[Round "7"]
[White "DanielRensch"]
[Black "bugsbunny444"]
[Result "0-1"]
[WhiteElo "2353"]
[BlackElo "2315"]
[TimeControl "180+2"]
[EndTime "12:26:54 PST"]
[Termination "bugsbunny444 won by resignation"]

1. d4 {[%clk 0:03:00]} 1... e6 {[%clk 0:02:58.6]} 2. Nc3 {[%clk 0:03:00.1]} 2...
d5 {[%clk 0:02:59.3]} 3. e4 {[%clk 0:03:01.4]} 3... Nf6 {[%clk 0:03:00.8]} 4.
Bg5 {[%clk 0:03:01.7]} 4... Bb4 {[%clk 0:03:01.8]} 5. e5 {[%clk 0:03:03.2]} 5...
h6 {[%clk 0:03:02.9]} 6. Be3 {[%clk 0:03:04.8]} 6... Ne4 {[%clk 0:03:03.9]} 7.
Qg4 {[%clk 0:03:06.4]} 7... g6 {[%clk 0:03:05]} 8. a3 {[%clk 0:03:07.9]} 8...
Bxc3+ {[%clk 0:03:06.2]} 9. bxc3 {[%clk 0:03:09.8]} 9... Nxc3 {[%clk 0:03:07.8]}
10. h4 {[%clk 0:03:10.1]} 10... Qe7 {[%clk 0:03:05.7]} 11. h5 {[%clk 0:03:09.8]}
11... g5 {[%clk 0:03:06.5]} 12. Nh3 {[%clk 0:03:10.5]} 12... Nc6 {[%clk
0:03:03.3]} 13. f4 {[%clk 0:03:11.2]} 13... gxf4 {[%clk 0:03:03.9]} 14. Bf2
{[%clk 0:03:12.5]} 14... Bd7 {[%clk 0:03:02.3]} 15. Bh4 {[%clk 0:03:13.1]} 15...
Qf8 {[%clk 0:03:02.2]} 16. Qxf4 {[%clk 0:03:14.4]} 16... Ne7 {[%clk 0:02:58.4]}
17. Bd3 {[%clk 0:03:07.5]} 17... O-O-O {[%clk 0:02:52]} 18. O-O {[%clk
0:03:08.4]} 18... Re8 {[%clk 0:02:06.8]} 19. Qxf7 {[%clk 0:03:07.8]} 19... Nf5
{[%clk 0:02:06.8]} 20. Qxf8 {[%clk 0:03:06.6]} 20... Rhxf8 {[%clk 0:02:06.3]}
21. Bxf5 {[%clk 0:03:07.2]} 21... exf5 {[%clk 0:02:02.7]} 22. Bf6 {[%clk
0:02:03.8]} 22... Ne2+ {[%clk 0:01:59.2]} 23. Kh2 {[%clk 0:02:05.1]} 23... Nxd4
{[%clk 0:02:00.1]} 24. Nf4 {[%clk 0:02:04.6]} 24... Nxc2 {[%clk 0:01:48.5]} 25.
Rac1 {[%clk 0:01:51.3]} 25... Ne3 {[%clk 0:01:49.4]} 26. Rfe1 {[%clk 0:01:43.4]}
26... Ng4+ {[%clk 0:01:50.1]} 27. Kg3 {[%clk 0:01:42.6]} 27... Nxf6 {[%clk
0:01:47.6]} 28. exf6 {[%clk 0:01:43.9]} 28... Rxe1 {[%clk 0:01:39.7]} 29. Rxe1
{[%clk 0:01:45.8]} 29... Rxf6 {[%clk 0:01:40.8]} 30. Nxd5 {[%clk 0:01:46.3]}
30... Rd6 {[%clk 0:01:30.7]} 31. Ne7+ {[%clk 0:01:35.7]} 31... Kd8 {[%clk
0:01:28.7]} 32. Kf4 {[%clk 0:01:07.8]} 32... Rd4+ {[%clk 0:01:19]} 33. Ke5
{[%clk 0:01:06.7]} 33... Re4+ {[%clk 0:00:57.3]} 34. Rxe4 {[%clk 0:01:06.3]}
34... fxe4 {[%clk 0:00:59.2]} 35. Nd5 {[%clk 0:01:06]} 35... Bg4 {[%clk
0:00:44.5]} 36. Kxe4 {[%clk 0:00:52.8]} 36... Bxh5 {[%clk 0:00:45.4]} 37. Kf5
{[%clk 0:00:49.3]} 37... Bf7 {[%clk 0:00:32.6]} 38. Nc3 {[%clk 0:00:41.9]} 38...
Ke7 {[%clk 0:00:23.2]} 39. Nb5 {[%clk 0:00:42.1]} 39... c6 {[%clk 0:00:23.2]}
40. Nxa7 {[%clk 0:00:43.2]} 40... Kd7 {[%clk 0:00:14.2]} 41. Kf6 {[%clk
0:00:36.2]} 41... Bd5 {[%clk 0:00:15.1]} 42. g4 {[%clk 0:00:36.9]} 42... Bf3
{[%clk 0:00:15.9]} 43. g5 {[%clk 0:00:33.1]} 43... hxg5 {[%clk 0:00:16.7]} 44.
Kxg5 {[%clk 0:00:35]} 44... Kc7 {[%clk 0:00:16]} 45. Kf4 {[%clk 0:00:36.9]}
45... Bg2 {[%clk 0:00:15.6]} 46. a4 {[%clk 0:00:31.3]} 46... Bh3 {[%clk
0:00:16.7]} 47. a5 {[%clk 0:00:30.4]} 47... Kd6 {[%clk 0:00:14.5]} 48. Ke4
{[%clk 0:00:17.8]} 48... Kc7 {[%clk 0:00:13.7]} 49. a6 {[%clk 0:00:08.8]} 49...
b6 {[%clk 0:00:06.9]} 50. Nxc6 {[%clk 0:00:09.5]} 50... Kxc6 {[%clk 0:00:07.9]}
51. Kd4 {[%clk 0:00:10.4]} 51... Bc8 {[%clk 0:00:08.3]} 52. a7 {[%clk
0:00:10.9]} 52... Kb7 {[%clk 0:00:09.7]} 53. Kc3 {[%clk 0:00:11.3]} 53... Kxa7
{[%clk 0:00:11]} 54. Kb4 {[%clk 0:00:13.2]} 54... Kb7 {[%clk 0:00:12.3]} 0-1

[Event "*** Monthly 3|2 Blitz Masters"]
[Site "Chess.com"]
[Date "2014.11.25"]
[Round "7"]
[White "Nouki"]
[Black "Sebastian"]
[Result "0-1"]
[WhiteElo "2635"]
[BlackElo "2543"]
[TimeControl "180+2"]
[EndTime "12:27:10 PST"]
[Termination "Sebastian won by resignation"]

1. d4 {[%clk 0:02:59.6]} 1... Nf6 {[%clk 0:02:58.7]} 2. c4 {[%clk 0:02:59.3]}
2... g6 {[%clk 0:02:59.9]} 3. Nc3 {[%clk 0:03:00.8]} 3... d5 {[%clk 0:03:00.5]}
4. Bg5 {[%clk 0:03:02.3]} 4... Bg7 {[%clk 0:03:01.1]} 5. Bxf6 {[%clk 0:03:03.2]}
5... Bxf6 {[%clk 0:03:02.6]} 6. cxd5 {[%clk 0:03:04.5]} 6... c5 {[%clk
0:03:04.2]} 7. dxc5 {[%clk 0:03:02.1]} 7... Nd7 {[%clk 0:03:03.5]} 8. e3 {[%clk
0:02:57.5]} 8... O-O {[%clk 0:03:03]} 9. Bc4 {[%clk 0:02:49]} 9... Nxc5 {[%clk
0:03:01.3]} 10. Nge2 {[%clk 0:02:50.5]} 10... Qb6 {[%clk 0:02:26.9]} 11. Bb3
{[%clk 0:02:13.9]} 11... a5 {[%clk 0:02:15.9]} 12. O-O {[%clk 0:02:12.9]} 12...
Bd7 {[%clk 0:02:16.7]} 13. Rb1 {[%clk 0:01:59.8]} 13... Rfd8 {[%clk 0:02:14.4]}
14. Nd4 {[%clk 0:01:56.2]} 14... Nxb3 {[%clk 0:01:31.4]} 15. Qxb3 {[%clk
0:01:48.3]} 15... Bxd4 {[%clk 0:01:25.5]} 16. exd4 {[%clk 0:01:50.2]} 16... Qxb3
{[%clk 0:01:23]} 17. axb3 {[%clk 0:01:52.1]} 17... b5 {[%clk 0:01:24.2]} 18.
Rfe1 {[%clk 0:01:41.6]} 18... Kf8 {[%clk 0:01:24.9]} 19. Rbc1 {[%clk 0:01:23]}
19... b4 {[%clk 0:01:26.2]} 20. Ne4 {[%clk 0:01:23.4]} 20... Bf5 {[%clk
0:01:21.5]} 21. d6 {[%clk 0:01:23.6]} 21... exd6 {[%clk 0:01:20.5]} 22. f3
{[%clk 0:01:11.8]} 22... Be6 {[%clk 0:01:18.9]} 23. Re3 {[%clk 0:01:03.4]} 23...
h6 {[%clk 0:01:00.4]} 24. Kf2 {[%clk 0:01:02.1]} 24... a4 {[%clk 0:01:01.5]} 25.
bxa4 {[%clk 0:01:02.3]} 25... Rxa4 {[%clk 0:01:03.2]} 26. Rd3 {[%clk 0:00:59.8]}
26... Bf5 {[%clk 0:00:48.9]} 27. Re3 {[%clk 0:00:53.1]} 27... Ra2 {[%clk
0:00:47.8]} 28. Re2 {[%clk 0:00:50.8]} 28... Re8 {[%clk 0:00:36.2]} 29. Rc7
{[%clk 0:00:43.1]} 29... Bxe4 {[%clk 0:00:15.8]} 30. fxe4 {[%clk 0:00:43.1]}
30... b3 {[%clk 0:00:12.8]} 31. Rb7 {[%clk 0:00:38.6]} 31... Ra4 {[%clk
0:00:13.6]} 32. Ke3 {[%clk 0:00:35.1]} 32... Re7 {[%clk 0:00:13.2]} 33. Rxe7
{[%clk 0:00:28]} 33... Kxe7 {[%clk 0:00:14]} 34. Kd3 {[%clk 0:00:29.9]} 34...
Rb4 {[%clk 0:00:14.4]} 35. Re1 {[%clk 0:00:31]} 35... Rb8 {[%clk 0:00:15.4]} 36.
Ra1 {[%clk 0:00:31.7]} 36... Ke6 {[%clk 0:00:16.6]} 37. Ra6 {[%clk 0:00:28.9]}
37... f6 {[%clk 0:00:17]} 38. Ra7 {[%clk 0:00:27.2]} 38... f5 {[%clk 0:00:18.5]}
39. Rh7 {[%clk 0:00:25]} 39... h5 {[%clk 0:00:19.4]} 40. exf5+ {[%clk
0:00:21.3]} 40... Kxf5 {[%clk 0:00:20.8]} 41. Rc7 {[%clk 0:00:21.2]} 41... d5
{[%clk 0:00:21]} 42. Rf7+ {[%clk 0:00:21.6]} 42... Ke6 {[%clk 0:00:22]} 43. Rc7
{[%clk 0:00:22.7]} 43... Rf8 {[%clk 0:00:22.7]} 44. Ke3 {[%clk 0:00:23.1]} 44...
Kf5 {[%clk 0:00:21.7]} 45. Rb7 {[%clk 0:00:22.7]} 45... Re8+ {[%clk 0:00:22.7]}
46. Kd3 {[%clk 0:00:24.1]} 46... Kf4 {[%clk 0:00:24.2]} 47. Rxb3 {[%clk
0:00:25.2]} 47... Re3+ {[%clk 0:00:24.7]} 48. Kc2 {[%clk 0:00:26.8]} 48... Re2+
{[%clk 0:00:26.3]} 49. Kc3 {[%clk 0:00:28.2]} 49... Rxg2 {[%clk 0:00:27.9]} 50.
Rb6 {[%clk 0:00:28.5]} 50... g5 {[%clk 0:00:27.6]} 51. Rf6+ {[%clk 0:00:29.5]}
51... Kg4 {[%clk 0:00:28.4]} 52. b4 {[%clk 0:00:27.1]} 52... Rxh2 {[%clk
0:00:29.5]} 53. b5 {[%clk 0:00:28.7]} 53... Re2 {[%clk 0:00:29.9]} 54. b6 {[%clk
0:00:29.1]} 54... Re8 {[%clk 0:00:30.9]} 55. Kb4 {[%clk 0:00:29.4]} 55... h4
{[%clk 0:00:31.7]} 56. Kc5 {[%clk 0:00:31]} 56... h3 {[%clk 0:00:32.9]} 57. b7
{[%clk 0:00:32.5]} 57... Kg3 {[%clk 0:00:32.3]} 58. Kc6 {[%clk 0:00:31.4]} 58...
g4 {[%clk 0:00:31.6]} 59. Kxd5 {[%clk 0:00:29]} 59... h2 {[%clk 0:00:30.9]} 60.
Rh6 {[%clk 0:00:29.6]} 60... Kg2 {[%clk 0:00:32.3]} 61. Kc6 {[%clk 0:00:31.5]}
61... h1=Q {[%clk 0:00:32.4]} 62. Rxh1 {[%clk 0:00:31.4]} 62... Kxh1 {[%clk
0:00:34]} 63. d5 {[%clk 0:00:32.9]} 63... g3 {[%clk 0:00:35.4]} 64. d6 {[%clk
0:00:34.8]} 64... g2 {[%clk 0:00:36.5]} 65. d7 {[%clk 0:00:36.7]} 65... Rg8
{[%clk 0:00:36.7]} 66. Kc7 {[%clk 0:00:38.2]} 66... g1=Q {[%clk 0:00:37.1]} 67.
b8=Q {[%clk 0:00:38.7]} 67... Qc5+ {[%clk 0:00:37.6]} 0-1

[Event "*** Monthly 3|2 Blitz Masters"]
[Site "Chess.com"]
[Date "2014.11.25"]
[Round "7"]
[White "162a54f5d"]
[Black "VSERGUEI"]
[Result "1-0"]
[WhiteElo "2346"]
[BlackElo "2279"]
[TimeControl "180+2"]
[EndTime "12:28:15 PST"]
[Termination "162a54f5d won by checkmate"]

1. d4 {[%clk 0:03:00]} 1... d5 {[%clk 0:02:58.5]} 2. c4 {[%clk 0:03:00.9]} 2...
c6 {[%clk 0:02:59.7]} 3. Nf3 {[%clk 0:03:01.8]} 3... Nf6 {[%clk 0:03:00.8]} 4.
e3 {[%clk 0:03:02.7]} 4... Bf5 {[%clk 0:02:59.9]} 5. Nc3 {[%clk 0:03:03]} 5...
e6 {[%clk 0:03:01.1]} 6. Nh4 {[%clk 0:03:01.8]} 6... Bg6 {[%clk 0:03:02.3]} 7.
Be2 {[%clk 0:02:55.1]} 7... Nbd7 {[%clk 0:03:03]} 8. O-O {[%clk 0:02:51.8]} 8...
Bd6 {[%clk 0:03:03.8]} 9. g3 {[%clk 0:02:48.3]} 9... Qe7 {[%clk 0:03:04.2]} 10.
Qb3 {[%clk 0:02:46.2]} 10... Rb8 {[%clk 0:03:04.2]} 11. Rd1 {[%clk 0:02:46.5]}
11... O-O {[%clk 0:03:02.2]} 12. Nxg6 {[%clk 0:02:43.4]} 12... hxg6 {[%clk
0:03:02.7]} 13. Qc2 {[%clk 0:02:43.2]} 13... dxc4 {[%clk 0:02:58.2]} 14. Bxc4
{[%clk 0:02:40.5]} 14... b5 {[%clk 0:02:45.1]} 15. Be2 {[%clk 0:02:34.5]} 15...
e5 {[%clk 0:02:43]} 16. dxe5 {[%clk 0:02:14.3]} 16... Nxe5 {[%clk 0:02:40.1]}
17. Ne4 {[%clk 0:02:12.4]} 17... Nxe4 {[%clk 0:02:29.6]} 18. Qxe4 {[%clk
0:02:14.3]} 18... c5 {[%clk 0:02:27.4]} 19. f4 {[%clk 0:01:46.7]} 19... Nc4
{[%clk 0:02:26.1]} 20. Qxe7 {[%clk 0:01:46.8]} 20... Bxe7 {[%clk 0:02:27.1]} 21.
b3 {[%clk 0:01:32.1]} 21... Bf6 {[%clk 0:02:19.9]} 22. Rb1 {[%clk 0:01:32.8]}
22... Na5 {[%clk 0:02:16.5]} 23. Bd2 {[%clk 0:01:31.4]} 23... Nc6 {[%clk
0:02:10.7]} 24. Rbc1 {[%clk 0:01:32.6]} 24... Be7 {[%clk 0:02:10.7]} 25. Bf3
{[%clk 0:01:27]} 25... Rfc8 {[%clk 0:02:03.6]} 26. Kf2 {[%clk 0:01:22.3]} 26...
Nb4 {[%clk 0:01:56.9]} 27. Ke2 {[%clk 0:01:15.9]} 27... Bf6 {[%clk 0:01:41.1]}
28. a3 {[%clk 0:01:06.4]} 28... Na6 {[%clk 0:01:32]} 29. Rc2 {[%clk 0:01:02.3]}
29... c4 {[%clk 0:01:29.7]} 30. bxc4 {[%clk 0:00:56.2]} 30... Rxc4 {[%clk
0:00:56.7]} 31. Rxc4 {[%clk 0:00:56.1]} 31... bxc4 {[%clk 0:00:57]} 32. Rc1
{[%clk 0:00:57.7]} 32... c3 {[%clk 0:00:51.2]} 33. Bxc3 {[%clk 0:00:58.5]} 33...
Bxc3 {[%clk 0:00:51.2]} 34. Rxc3 {[%clk 0:01:00.4]} 34... Rb2+ {[%clk 0:00:52]}
35. Kd3 {[%clk 0:01:01.7]} 35... Nb8 {[%clk 0:00:20.4]} 36. Bd5 {[%clk
0:00:58.8]} 36... Nd7 {[%clk 0:00:20.2]} 37. Rc7 {[%clk 0:00:49.6]} 37... Nb6
{[%clk 0:00:15.6]} 38. Bxf7+ {[%clk 0:00:49]} 38... Kh7 {[%clk 0:00:16.8]} 39.
Be6 {[%clk 0:00:48.7]} 39... Rxh2 {[%clk 0:00:15.3]} 40. Rxa7 {[%clk 0:00:49.7]}
40... Rg2 {[%clk 0:00:15.3]} 41. g4 {[%clk 0:00:48.2]} 41... g5 {[%clk
0:00:15.7]} 42. Bf5+ {[%clk 0:00:47.7]} 42... Kg8 {[%clk 0:00:15.1]} 43. fxg5
{[%clk 0:00:45.3]} 43... g6 {[%clk 0:00:15.3]} 44. Be6+ {[%clk 0:00:43.7]} 44...
Kf8 {[%clk 0:00:15.6]} 45. a4 {[%clk 0:00:44.9]} 45... Rb2 {[%clk 0:00:13.8]}
46. a5 {[%clk 0:00:44.3]} 46... Na4 {[%clk 0:00:15.1]} 47. Bd5 {[%clk
0:00:37.8]} 47... Nc5+ {[%clk 0:00:14.3]} 48. Kd4 {[%clk 0:00:39]} 48... Na4
{[%clk 0:00:14.5]} 49. Ke5 {[%clk 0:00:39.3]} 49... Rb5 {[%clk 0:00:14.5]} 50.
e4 {[%clk 0:00:39.2]} 50... Nc5 {[%clk 0:00:13.8]} 51. Kf6 {[%clk 0:00:39.6]}
51... Rb8 {[%clk 0:00:13.2]} 52. Rf7+ {[%clk 0:00:40.1]} 52... Ke8 {[%clk
0:00:13.9]} 53. Re7+ {[%clk 0:00:40.8]} 53... Kd8 {[%clk 0:00:14.7]} 54. Rg7
{[%clk 0:00:39.9]} 54... Nd7+ {[%clk 0:00:15.1]} 55. Ke6 {[%clk 0:00:39.7]}
55... Nf8+ {[%clk 0:00:13.8]} 56. Kd6 {[%clk 0:00:40.7]} 56... Rb5 {[%clk
0:00:14.9]} 57. Ra7 {[%clk 0:00:36.9]} 57... Rb8 {[%clk 0:00:11.7]} 58. Ra8
{[%clk 0:00:38.1]} 58... Rxa8 {[%clk 0:00:12.5]} 59. Bxa8 {[%clk 0:00:40]} 59...
Kc8 {[%clk 0:00:14.1]} 60. Bc6 {[%clk 0:00:40.2]} 60... Nh7 {[%clk 0:00:13.6]}
61. a6 {[%clk 0:00:37.5]} 61... Kb8 {[%clk 0:00:14]} 62. e5 {[%clk 0:00:39]}
62... Nxg5 {[%clk 0:00:15.1]} 63. e6 {[%clk 0:00:40.5]} 63... Nh7 {[%clk
0:00:13.6]} 64. e7 {[%clk 0:00:41.1]} 64... Nf6 {[%clk 0:00:14.9]} 65. e8=Q+
{[%clk 0:00:42.6]} 65... Nxe8+ {[%clk 0:00:15.9]} 66. Bxe8 {[%clk 0:00:44.5]}
66... g5 {[%clk 0:00:17.8]} 67. Bb5 {[%clk 0:00:45.7]} 67... Ka7 {[%clk
0:00:19.7]} 68. Be2 {[%clk 0:00:47.3]} 68... Kb6 {[%clk 0:00:21.6]} 69. Ke5
{[%clk 0:00:48.8]} 69... Kc5 {[%clk 0:00:23.1]} 70. Kf5 {[%clk 0:00:50.3]} 70...
Kd4 {[%clk 0:00:24.3]} 71. Kxg5 {[%clk 0:00:51.7]} 71... Ke3 {[%clk 0:00:25.5]}
72. a7 {[%clk 0:00:53.6]} 72... Kf2 {[%clk 0:00:18.9]} 73. a8=Q {[%clk
0:00:55.5]} 73... Kg1 {[%clk 0:00:16.5]} 74. Bb5 {[%clk 0:00:54]} 74... Kh2
{[%clk 0:00:17]} 75. Qa3 {[%clk 0:00:54.5]} 75... Kg1 {[%clk 0:00:17.5]} 76. Qb2
{[%clk 0:00:53.8]} 76... Kh1 {[%clk 0:00:17.5]} 77. Bc6+ {[%clk 0:00:54.9]}
77... Kg1 {[%clk 0:00:02.6]} 78. Qg2# {[%clk 0:00:56.8]} 1-0

[Event "*** Monthly 3|2 Blitz Masters"]
[Site "Chess.com"]
[Date "2014.11.25"]
[Round "7"]
[White "hitaman"]
[Black "rhungaski"]
[Result "1/2-1/2"]
[WhiteElo "2402"]
[BlackElo "2423"]
[TimeControl "180+2"]
[EndTime "12:28:30 PST"]
[Termination "Game drawn - insufficient material"]

1. e4 {[%clk 0:03:00]} 1... d6 {[%clk 0:02:57]} 2. d4 {[%clk 0:03:00.7]} 2...
Nf6 {[%clk 0:02:58.4]} 3. Nc3 {[%clk 0:03:02]} 3... e5 {[%clk 0:02:57]} 4. dxe5
{[%clk 0:03:02.3]} 4... dxe5 {[%clk 0:02:58.9]} 5. Qxd8+ {[%clk 0:03:03.9]} 5...
Kxd8 {[%clk 0:03:00.8]} 6. Bc4 {[%clk 0:03:05.5]} 6... Be6 {[%clk 0:03:01.4]} 7.
Bxe6 {[%clk 0:03:06.6]} 7... fxe6 {[%clk 0:03:03.3]} 8. f3 {[%clk 0:03:08.2]}
8... a6 {[%clk 0:03:02.1]} 9. Be3 {[%clk 0:03:07.2]} 9... Bd6 {[%clk 0:03:02.6]}
10. Nh3 {[%clk 0:03:06.6]} 10... Ke7 {[%clk 0:03:01.6]} 11. Nf2 {[%clk
0:03:06.8]} 11... Nbd7 {[%clk 0:03:01.7]} 12. a4 {[%clk 0:03:01.8]} 12... b6
{[%clk 0:03:00.5]} 13. Nd3 {[%clk 0:02:58.9]} 13... c5 {[%clk 0:02:58.7]} 14. b3
{[%clk 0:02:56.3]} 14... c4 {[%clk 0:02:22]} 15. bxc4 {[%clk 0:02:57]} 15...
Rhc8 {[%clk 0:02:22.9]} 16. Nb2 {[%clk 0:02:58.2]} 16... Bb4 {[%clk 0:02:22.4]}
17. Bd2 {[%clk 0:02:59.1]} 17... Bxc3 {[%clk 0:01:58.5]} 18. Bxc3 {[%clk
0:03:00]} 18... a5 {[%clk 0:01:59.4]} 19. Bd2 {[%clk 0:02:41.1]} 19... h6 {[%clk
0:01:52.2]} 20. Be3 {[%clk 0:02:12.6]} 20... Ne8 {[%clk 0:01:49.2]} 21. O-O-O
{[%clk 0:02:13.3]} 21... Nd6 {[%clk 0:01:44.9]} 22. Rd3 {[%clk 0:02:13.7]} 22...
Nxc4 {[%clk 0:01:42.1]} 23. Rhd1 {[%clk 0:02:10.2]} 23... Ra7 {[%clk 0:01:42.8]}
24. Nxc4 {[%clk 0:01:46]} 24... Rxc4 {[%clk 0:01:44.7]} 25. Rd6 {[%clk
0:01:47.6]} 25... Rxa4 {[%clk 0:01:10.2]} 26. Rc6 {[%clk 0:01:48]} 26... Ra1+
{[%clk 0:01:06.7]} 27. Kd2 {[%clk 0:01:49.2]} 27... Rxd1+ {[%clk 0:01:07.9]} 28.
Kxd1 {[%clk 0:01:50.9]} 28... Rb7 {[%clk 0:00:46.8]} 29. c4 {[%clk 0:01:39.7]}
29... b5 {[%clk 0:00:37.8]} 30. cxb5 {[%clk 0:01:21.6]} 30... Rxb5 {[%clk
0:00:39.7]} 31. Ra6 {[%clk 0:01:22.5]} 31... Nc5 {[%clk 0:00:27.7]} 32. Ra7+
{[%clk 0:01:18.4]} 32... Kf6 {[%clk 0:00:27.9]} 33. h4 {[%clk 0:01:04]} 33...
Nb3 {[%clk 0:00:18.9]} 34. Kc2 {[%clk 0:01:03.5]} 34... Nd4+ {[%clk 0:00:19.1]}
35. Kc1 {[%clk 0:00:50.3]} 35... h5 {[%clk 0:00:16.3]} 36. Ra6 {[%clk
0:00:44.1]} 36... Rc5+ {[%clk 0:00:16.1]} 37. Kd1 {[%clk 0:00:44.5]} 37... Rb5
{[%clk 0:00:15.8]} 38. Ra7 {[%clk 0:00:42.7]} 38... Rb2 {[%clk 0:00:13.5]} 39.
Bg5+ {[%clk 0:00:20.1]} 39... Kg6 {[%clk 0:00:13.6]} 40. g4 {[%clk 0:00:20.8]}
40... Nxf3 {[%clk 0:00:11.9]} 41. gxh5+ {[%clk 0:00:21.9]} 41... Kxh5 {[%clk
0:00:12.8]} 42. Rxg7 {[%clk 0:00:23.4]} 42... a4 {[%clk 0:00:05.2]} 43. Bc1
{[%clk 0:00:23.5]} 43... Rb4 {[%clk 0:00:03.9]} 44. Rh7+ {[%clk 0:00:24.6]}
44... Kg4 {[%clk 0:00:04.5]} 45. h5 {[%clk 0:00:25.3]} 45... Rd4+ {[%clk
0:00:04.4]} 46. Kc2 {[%clk 0:00:25.7]} 46... Rxe4 {[%clk 0:00:04]} 47. h6 {[%clk
0:00:26.8]} 47... Nd4+ {[%clk 0:00:05.4]} 48. Kd3 {[%clk 0:00:27.4]} 48... Re1
{[%clk 0:00:04.9]} 49. Bd2 {[%clk 0:00:28]} 49... Rh1 {[%clk 0:00:05.3]} 50.
Rg7+ {[%clk 0:00:29]} 50... Kf3 {[%clk 0:00:06.6]} 51. Rf7+ {[%clk 0:00:30.4]}
51... Nf5 {[%clk 0:00:07.7]} 52. h7 {[%clk 0:00:21.9]} 52... a3 {[%clk
0:00:08.7]} 53. Bc3 {[%clk 0:00:22]} 53... e4+ {[%clk 0:00:09.7]} 54. Kc2 {[%clk
0:00:22.8]} 54... Rh2+ {[%clk 0:00:08]} 55. Kb3 {[%clk 0:00:23.6]} 55... e3
{[%clk 0:00:06.9]} 56. h8=Q {[%clk 0:00:23.6]} 56... Rxh8 {[%clk 0:00:08.6]} 57.
Bxh8 {[%clk 0:00:25.3]} 57... Ke4 {[%clk 0:00:07.3]} 58. Bc3 {[%clk 0:00:26.2]}
58... e2 {[%clk 0:00:07.5]} 59. Kxa3 {[%clk 0:00:25.9]} 59... Kd3 {[%clk
0:00:08.1]} 60. Ba5 {[%clk 0:00:26.4]} 60... Ne3 {[%clk 0:00:10]} 61. Kb3 {[%clk
0:00:23.5]} 61... Nc2 {[%clk 0:00:10.2]} 62. Rd7+ {[%clk 0:00:23.7]} 62... Nd4+
{[%clk 0:00:10.2]} 63. Kb2 {[%clk 0:00:24.4]} 63... e5 {[%clk 0:00:11.3]} 64.
Kc1 {[%clk 0:00:25]} 64... Ke3 {[%clk 0:00:11]} 65. Bd2+ {[%clk 0:00:24.6]}
65... Kf2 {[%clk 0:00:11.6]} 66. Rf7+ {[%clk 0:00:25.2]} 66... Nf3 {[%clk
0:00:12.4]} 67. Ba5 {[%clk 0:00:23]} 67... e4 {[%clk 0:00:12.4]} 68. Rf4 {[%clk
0:00:22.9]} 68... e3 {[%clk 0:00:11.9]} 69. Re4 {[%clk 0:00:22.6]} 69... e1=Q+
{[%clk 0:00:11.2]} 70. Bxe1+ {[%clk 0:00:23]} 70... Nxe1 {[%clk 0:00:13.1]} 71.
Kd1 {[%clk 0:00:22.6]} 71... Nf3 {[%clk 0:00:12.4]} 72. Re8 {[%clk 0:00:20.8]}
72... Ng1 {[%clk 0:00:12.9]} 73. Re7 {[%clk 0:00:18.7]} 73... e2+ {[%clk
0:00:12.1]} 74. Rxe2+ {[%clk 0:00:18.9]} 74... Nxe2 {[%clk 0:00:14]} 1/2-1/2